fUST/lending_fUST_20241205
["ID","MTS","AMOUNT","RATE_DAILY","PERIOD"]
[344354112,1733367034195,-510.51346997,0.00028099,2]
[344354113,1733367034207,-505.63062656,0.00028099,2]
[344354114,1733367034217,-509.45422055,0.00028099,2]
[344354115,1733367034228,-508.76634144,0.00028099,2]
[344354117,1733367034239,-522.37737271,0.00028099,2]
[344354118,1733367034249,-508.35253574,0.00028099,2]
[344354119,1733367034260,-513.14329621,0.00028099,2]
[344354120,1733367034270,-200.0,0.00028147,2]
[344354121,1733367034281,-500.0,0.00028147,2]
[344354122,1733367034292,-500.0,0.00028147,2]
[344354123,1733367034303,-509.53294772,0.00028147,2]
[344354124,1733367034313,-500.0,0.00028147,2]
[344354125,1733367034323,-622.30085149,0.00028147,2]
[344354126,1733367034333,-551.16463554,0.00028147,2]
[344354127,1733367034344,-506.38371857,0.00028147,2]
[344354128,1733367034354,-420.0,0.00028258,2]
[344354129,1733367034365,-500.0,0.00028308,2]
[344354130,1733367034376,-200.0,0.00028421,2]
[344354131,1733367034396,-500.0,0.00028421,2]
[344354132,1733367034409,-512.25980826,0.00028421,2]
[344354133,1733367034423,-500.0,0.00028421,2]
[344354134,1733367034434,-500.0,0.00028582,2]
[344354135,1733367034445,-201.9045183,0.00028695,2]
[344354136,1733367034456,-563.52674613,0.00028695,2]
[344354137,1733367034467,-509.17961013,0.00028695,2]
[344354138,1733367034478,-420.0,0.00028725,2]
[344354139,1733367034490,-500.0,0.00028767,4]
[344354140,1733367034501,-401.10182343,0.00028856,2]
[344354141,1733367034512,-971.5586,0.00029527,15]
[344354142,1733367034523,-1614.76627483,0.0003,20]
[344354143,1733367034603,-174.23372517,0.0003,20]
[344354144,1733367034615,-1786.0,0.0003,20]
[344354145,1733367034626,-1786.0,0.0003,20]
[344354146,1733367034638,-1786.0,0.0003,20]
[344354147,1733367034649,-605.13256083,0.0003,2]
[344354148,1733367034661,-197.0,0.0003,2]
[344354149,1733367034674,-296.19,0.000301,31]
[344354150,1733367034685,-296.19,0.000301,31]
[344354151,1733367034695,-296.19,0.000301,31]
[344354152,1733367034706,-296.19,0.000301,31]
[344354153,1733367034716,-296.19,0.000301,31]
[344354154,1733367034727,-296.19,0.000301,31]
[344354155,1733367034737,-296.19,0.000301,31]
[344354156,1733367034747,-296.19,0.000301,31]
[344354157,1733367034758,-296.19,0.000301,31]
[344354158,1733367034769,-296.19,0.000301,31]
[344354159,1733367034780,-296.19,0.000301,31]
[344354160,1733367034790,-296.19,0.000301,31]
[344354161,1733367034801,-500.0,0.00030136,6]
[344354162,1733367034811,-150.53394357,0.00030319,2]
[344354163,1733367034822,-5536.52172544,0.00030384,2]
[344354164,1733367034832,-5536.52172545,0.00030462,2]
[344354165,1733367034843,-587.0,0.00030578,2]
[344354166,1733367034853,-219.35766921,0.00030671,2]
[344354167,1733367034864,-666.0,0.00030671,2]
[344354168,1733367034874,-33333.0,0.00030671,2]
[344354169,1733367034885,-6992.28420063,0.000307,2]
[344354170,1733367034896,-124512.00705423,0.000307,2]
[344354171,1733367034907,-151.0,0.000307,7]
[344354172,1733367034923,-151.0,0.000307,7]
[344354173,1733367034933,-199.51386,0.000307,7]
[344354174,1733367034944,-156.366691,0.000307,7]
[344354175,1733367034955,-315.451202,0.00030767,30]
[344354176,1733367034965,-154.646143,0.00030769,7]
[344354177,1733367034975,-151.0,0.00030769,7]
[344354178,1733367034985,-151.0,0.00030769,7]
[344354179,1733367034995,-151.0,0.00030769,7]
[344354180,1733367035007,-240.574471,0.00030769,7]
[344354181,1733367035017,-151.0,0.00030769,7]
[344354182,1733367035028,-151.0,0.00030769,7]
[344354183,1733367035043,-151.0,0.00030769,7]
[344354184,1733367035053,-151.0,0.00030769,7]
[344354185,1733367035064,-151.0,0.00030769,7]
[344354186,1733367035075,-151.0,0.00030769,7]
[344354187,1733367035085,-151.0,0.00030769,7]
[344354188,1733367035095,-151.0,0.00030769,7]
[344354189,1733367035106,-151.0,0.00030769,7]
[344354190,1733367035117,-151.0,0.00030769,7]
[344354191,1733367035127,-151.0,0.0003077,7]
[344354192,1733367035139,-151.0,0.0003077,7]
[344354193,1733367035149,-151.0,0.0003077,7]
[344354194,1733367035159,-151.0,0.0003077,7]
[344354195,1733367035173,-219.915393,0.0003077,7]
[344354196,1733367035183,-151.0,0.0003077,7]
[344354197,1733367035193,-1000.0,0.0003077,28]
[344354198,1733367035203,-1000.0,0.0003077,28]
[344354199,1733367035212,-1000.0,0.0003077,28]
[344354200,1733367035225,-1000.0,0.0003077,28]
[344354201,1733367035234,-1000.0,0.0003077,28]
[344354202,1733367035244,-1000.0,0.0003077,28]
[344354203,1733367035254,-1000.0,0.0003077,28]
[344354204,1733367035264,-1000.0,0.0003077,28]
[344354205,1733367035273,-1000.0,0.0003077,28]
[344354206,1733367035283,-1000.0,0.0003077,28]
[344354207,1733367035294,-1000.0,0.0003077,28]
[344354208,1733367035304,-1000.0,0.0003077,28]
[344354209,1733367035313,-1000.0,0.0003077,28]
[344354210,1733367035322,-1000.0,0.0003077,28]
[344354211,1733367035331,-1000.0,0.0003077,28]
[344354212,1733367035341,-1000.0,0.0003077,28]
[344354213,1733367035352,-1008.673626,0.0003077,28]
[344354214,1733367035362,-151.0,0.0003077,7]
[344354215,1733367035372,-151.0,0.0003077,7]
[344354216,1733367035383,-151.0,0.0003077,7]
[344354217,1733367035393,-151.0,0.0003077,7]
[344354218,1733367035404,-151.0,0.0003077,7]
[344354219,1733367035414,-151.0,0.0003077,7]
[344354220,1733367035426,-151.0,0.0003077,7]
[344354221,1733367035436,-151.0,0.0003077,7]
[344354222,1733367035445,-151.0,0.0003077,7]
[344354223,1733367035456,-151.0,0.0003077,7]
[344354224,1733367035466,-151.0,0.0003077,7]
[344354225,1733367035477,-151.0,0.0003077,7]
[344354226,1733367035607,-151.0,0.0003077,7]
[344354227,1733367035618,-151.0,0.0003077,7]
[344354228,1733367035629,-201.068151,0.0003077,7]
[344354229,1733367035640,-151.0,0.0003077,7]
[344354230,1733367035651,-270.986597,0.0003077,7]
[344354231,1733367035661,-153.225421,0.0003077,7]
[344354232,1733367035675,-153.222769,0.0003077,7]
[344354233,1733367035684,-636395.88634266,0.00030771,10]
[344354234,1733367035699,-555.63725863,0.00030771,10]
[344354235,1733367035713,-1432.0875,0.00030771,10]
[344354236,1733367035724,-18215.92577187,0.00030771,10]
[344354237,1733367035736,-2932.88887826,0.00030771,10]
[344354238,1733367035748,-722.59937,0.00030771,10]
[344354239,1733367035760,-199743.13122514,0.00030771,10]
[344354240,1733367035772,-14252.28699618,0.00030771,10]
[344354329,1733367038924,-507.92112451,0.00026116,2]
[344354330,1733367038934,-175.948,0.00028028,2]
[344354331,1733367038944,-485.58,0.00029527,15]
[344354332,1733367038954,-12290.07024707,0.00030771,10]
[344354333,1733367039064,-5376.579,0.00030771,10]
[344354334,1733367039077,-3846.8358957,0.00030771,10]
[344354335,1733367039089,-13407.47043489,0.00030771,10]
[344354389,1733367041938,-547.33755601,0.00026116,2]
[344354391,1733367041948,-503.93438003,0.00027599,2]
[344354393,1733367041958,-150.391,0.00028028,2]
[344354395,1733367041967,-485.491,0.00029527,15]
[344354397,1733367041977,-200312.84606297,0.00030771,10]
[344354510,1733367044740,-555.99,0.00026116,2]
[344354512,1733367044750,-485.99,0.00029527,15]
[344354514,1733367044760,-128956.71999999,0.00030771,10]
[344354516,1733367044772,-123472.62218929,0.00030771,10]
[344354525,1733367044853,-2467.81760194,0.00030771,10]
[344354540,1733367045001,-33333.0,0.00030671,2]
[344354542,1733367045011,-45868.31692858,0.00030771,10]
[344354709,1733367046969,-161.0,0.00022,2]
[344354710,1733367046980,-180.0,0.00022,2]
[344354711,1733367046990,-180.0,0.00022192,2]
[344354713,1733367047000,-98979.0,0.00030771,10]
[344354715,1733367047012,-539.11114,0.00030771,10]
[344354717,1733367047023,-9012.73081266,0.00030771,10]
[344354724,1733367047116,-1738.92665264,0.00030771,10]
[344354725,1733367047129,-379.05567861,0.00030771,10]
[344354726,1733367047140,-14479793.1286145,0.00030771,10]
[344354727,1733367047152,-8638.81990872,0.00030771,10]
[344354979,1733367366691,164.066534,0.00013973,2]
[344354982,1733367415307,20000.0,0.00027,30]
[344354983,1733367489835,220.0,0.00027,120]
[344354984,1733367530062,270.0,0.00027,120]
[344354992,1733367822137,14784.55586,0.00027,30]
[344355384,1733368046916,158.181753,0.00013973,2]
[344355458,1733368232566,-290.43964264,0.000215,2]
[344355460,1733368232578,-313.31020472,0.000216,2]
[344355462,1733368232588,-2293.83327436,0.000217,2]
[344355464,1733368232604,-239.18007889,0.000217,2]
[344355466,1733368232615,-162.43624799,0.000218,2]
[344355467,1733368232625,-195.42615953,0.000218,2]
[344355469,1733368232635,-2193.0063828,0.00021946,2]
[344355471,1733368232645,-154.0,0.00022,2]
[344355473,1733368232655,-300.0,0.00022016,2]
[344355475,1733368232666,-300.0,0.00022016,2]
[344355477,1733368232676,-3645.5893079,0.00022017,2]
[344355479,1733368232687,-314.2743692,0.00022075,2]
[344355481,1733368232698,-6872.1232321,0.00022219,2]
[344355483,1733368232707,-500.0,0.00022241,2]
[344355485,1733368232717,-500.0,0.00022241,2]
[344355487,1733368232727,-500.0,0.00022241,2]
[344355490,1733368232737,-500.0,0.00022241,2]
[344355492,1733368232747,-500.0,0.00022241,2]
[344355493,1733368232757,-500.0,0.00022241,2]
[344355495,1733368232767,-500.0,0.00022241,2]
[344355497,1733368232777,-513.29707088,0.00022241,2]
[344355499,1733368232787,-500.0,0.00022241,2]
[344355501,1733368232796,-500.0,0.00022241,2]
[344355503,1733368232807,-500.0,0.00022241,2]
[344355505,1733368232817,-500.0,0.00022241,2]
[344355507,1733368232830,-500.0,0.00022241,2]
[344355509,1733368232840,-500.0,0.00022241,2]
[344355511,1733368232855,-500.95974406,0.00022241,2]
[344355513,1733368232866,-13555.6853587,0.00022242,2]
[344355515,1733368232880,-152.0,0.00022278,2]
[344355517,1733368232890,-772.645274,0.00022356,2]
[344355519,1733368232901,-168.454256,0.00022463,2]
[344355521,1733368232910,-500.0,0.00022515,2]
[344355523,1733368232920,-500.0,0.00022515,2]
[344355525,1733368232930,-500.0,0.00022515,2]
[344355527,1733368232941,-500.0,0.00022515,2]
[344355530,1733368232952,-342.69,0.00022515,2]
[344355544,1733368233092,-208.76771118,0.00022515,2]
[344355545,1733368233113,-507.47215346,0.00022515,2]
[344355546,1733368233124,-500.0,0.00022515,2]
[344355547,1733368233135,-500.0,0.00022515,2]
[344355548,1733368233147,-307.58090048,0.00022515,2]
[344355550,1733368233159,-500.0,0.00022515,2]
[344355552,1733368233170,-500.0,0.00022515,2]
[344355554,1733368233180,-598.22953875,0.00022788,2]
[344355556,1733368233191,-421.60218638,0.00022788,2]
[344355557,1733368233202,-563.07693232,0.00022788,2]
[344355559,1733368233212,-500.0,0.00022788,2]
[344355561,1733368233223,-563.07693232,0.00022788,2]
[344355563,1733368233234,-500.0,0.00022788,2]
[344355565,1733368233245,-563.07693232,0.00022788,2]
[344355567,1733368233256,-500.0,0.00022788,2]
[344355569,1733368233266,-563.07693232,0.00022788,2]
[344355571,1733368233277,-500.0,0.00022788,2]
[344355573,1733368233287,-563.07693232,0.00022788,2]
[344355575,1733368233298,-563.07693232,0.00022788,2]
[344355577,1733368233308,-500.0,0.00022788,2]
[344355579,1733368233319,-563.07693232,0.00022788,2]
[344355581,1733368233328,-500.0,0.00022788,2]
[344355582,1733368233338,-563.07693232,0.00022788,2]
[344355584,1733368233354,-563.07693232,0.00022788,2]
[344355586,1733368233364,-500.0,0.00022788,2]
[344355588,1733368233373,-563.07693232,0.00022788,2]
[344355590,1733368233383,-500.0,0.00022788,2]
[344355592,1733368233394,-563.07693232,0.00022788,2]
[344355594,1733368233403,-500.0,0.00022788,2]
[344355596,1733368233413,-563.07693232,0.00022788,2]
[344355598,1733368233427,-500.0,0.00022788,2]
[344355600,1733368233438,-563.07693232,0.00022788,2]
[344355602,1733368233448,-236.41,0.00022789,2]
[344355604,1733368233458,-500.0,0.00022789,2]
[344355606,1733368233468,-500.0,0.00022789,2]
[344355607,1733368233479,-500.0,0.00022789,2]
[344355609,1733368233490,-500.0,0.00022789,2]
[344355611,1733368233502,-500.0,0.00022789,2]
[344355613,1733368233513,-500.0,0.00022789,2]
[344355615,1733368233524,-372.99638975,0.00022789,2]
[344355617,1733368233535,-203.0,0.00023,2]
[344355619,1733368233545,-180.0,0.00023014,2]
[344355621,1733368233556,-155.0,0.00023014,2]
[344355623,1733368233566,-500.0,0.00023063,2]
[344355625,1733368233577,-233.74958853,0.00023063,2]
[344355626,1733368233587,-500.0,0.00023063,2]
[344355627,1733368233603,-500.0,0.00023063,2]
[344355628,1733368233614,-500.0,0.00023063,2]
[344355629,1733368233624,-500.0,0.00023337,2]
[344355630,1733368233635,-500.0,0.00023337,2]
[344355631,1733368233646,-500.0,0.00023337,2]
[344355632,1733368233656,-500.0,0.00023337,2]
[344355633,1733368233667,-180.817778,0.00023455,2]
[344355634,1733368233678,-161.682594,0.00023562,2]
[344355635,1733368233689,-500.0,0.00023611,2]
[344355636,1733368233699,-328.14149911,0.00023611,2]
[344355637,1733368233709,-500.0,0.00023611,2]
[344355638,1733368233719,-500.0,0.00023611,2]
[344355639,1733368233730,-500.0,0.00023885,2]
[344355640,1733368233740,-500.0,0.00023885,2]
[344355641,1733368233750,-500.0,0.00023885,2]
[344355642,1733368233760,-420.0,0.00023924,2]
[344355643,1733368233770,-155.51,0.00023924,3]
[344355644,1733368233781,-182.5,0.00023927,2]
[344355645,1733368233791,-241.68510459,0.00023936,2]
[344355646,1733368233802,-175.24561147,0.00023936,2]
[344355647,1733368233812,-483.99214838,0.00023936,2]
[344355648,1733368233822,-182.50126674,0.00023936,2]
[344355650,1733368233832,-500.0,0.00023936,2]
[344355651,1733368233842,-501.3088898,0.00023936,2]
[344355653,1733368233858,-500.0,0.00023936,2]
[344355655,1733368233868,-500.98616635,0.00023936,2]
[344355657,1733368233878,-503.09763676,0.00023936,2]
[344355659,1733368233889,-500.0,0.00023936,2]
[344355661,1733368233899,-500.0,0.00023936,2]
[344355663,1733368233910,-503.02281552,0.00023936,2]
[344355665,1733368233920,-500.0,0.00023936,2]
[344355667,1733368233931,-500.0,0.00023936,2]
[344355669,1733368233941,-500.0,0.00023936,2]
[344355671,1733368233953,-506.00697928,0.00023936,2]
[344355673,1733368233963,-500.0,0.00023936,2]
[344355675,1733368233974,-500.0,0.00023936,2]
[344355676,1733368233984,-562.32447402,0.00023936,2]
[344355678,1733368233993,-500.0,0.00023936,2]
[344355680,1733368234003,-500.0,0.00023936,2]
[344355682,1733368234013,-500.0,0.00023936,2]
[344355684,1733368234023,-500.0,0.00023936,2]
[344355686,1733368234032,-619.05695299,0.00023936,2]
[344355688,1733368234042,-501.32132588,0.00023936,2]
[344355690,1733368234053,-507.08396192,0.00023936,2]
[344355692,1733368234064,-500.0,0.00023936,2]
[344355694,1733368234074,-500.0,0.00023936,2]
[344355696,1733368234084,-500.0,0.00023936,2]
[344355698,1733368234094,-500.0,0.00023936,2]
[344355700,1733368234110,-500.0,0.00023936,2]
[344355702,1733368234120,-500.0,0.00023936,2]
[344355704,1733368234131,-500.0,0.00023936,2]
[344355706,1733368234141,-505.49417212,0.00023936,2]
[344355708,1733368234151,-426.85562649,0.00023937,2]
[344355710,1733368234161,-500.0,0.00023937,2]
[344355712,1733368234171,-500.0,0.00023937,2]
[344355714,1733368234181,-500.0,0.00023937,2]
[344355716,1733368234191,-535.86370243,0.00023937,2]
[344355718,1733368234201,-506.43600537,0.00023937,2]
[344355720,1733368234211,-505.02515541,0.00023937,2]
[344355722,1733368234220,-500.0,0.00023937,2]
[344355724,1733368234230,-500.0,0.00023937,2]
[344355726,1733368234240,-503.45671994,0.00023937,2]
[344355728,1733368234249,-500.0,0.00023937,2]
[344355729,1733368234259,-500.0,0.00023937,2]
[344355732,1733368234269,-500.0,0.00023937,2]
[344355733,1733368234279,-503.82429031,0.00023937,2]
[344355735,1733368234288,-500.0,0.00023937,2]
[344355737,1733368234298,-352.92743638,0.00023937,2]
[344355739,1733368234308,-205.67706396,0.00023937,2]
[344355741,1733368234317,-577.47233134,0.00023937,2]
[344355743,1733368234326,-500.0,0.00023937,2]
[344355745,1733368234335,-500.0,0.00023937,2]
[344355747,1733368234345,-500.0,0.00023937,2]
[344355749,1733368234359,-500.0,0.00023937,2]
[344355751,1733368234370,-500.0,0.00023937,2]
[344355753,1733368234380,-505.84800799,0.00023937,2]
[344355755,1733368234389,-503.14802699,0.00023937,2]
[344355756,1733368234403,-500.0,0.00023937,2]
[344355758,1733368234413,-514.2521661,0.00023937,2]
[344355760,1733368234423,-507.52662215,0.00023937,2]
[344355762,1733368234435,-500.0,0.00023937,2]
[344355764,1733368234446,-512.30397911,0.00023937,2]
[344355766,1733368234455,-1000.0,0.00023937,5]
[344355768,1733368234466,-388.17387189,0.00023937,2]
[344355770,1733368234477,-501.37921495,0.00023937,2]
[344355772,1733368234492,-503.30226867,0.00023937,2]
[344355774,1733368234503,-500.0,0.00023937,2]
[344355776,1733368234515,-500.0,0.00023937,2]
[344355778,1733368234526,-524.70939092,0.00023937,2]
[344355780,1733368234538,-1000.0,0.00023937,10]
[344355782,1733368234550,-507.03263471,0.00023937,2]
[344355784,1733368234561,-502.62164468,0.00023937,2]
[344355786,1733368234573,-515.32134577,0.00023937,2]
[344355788,1733368234584,-500.0,0.00023937,2]
[344355790,1733368234597,-503.8635692,0.00023937,2]
[344355791,1733368234616,-506.37178028,0.00023937,2]
[344355793,1733368234629,-500.0,0.00023937,2]
[344355795,1733368234640,-500.0,0.00023937,2]
[344355797,1733368234652,-500.0,0.00023937,2]
[344355799,1733368234663,-500.0,0.00023937,2]
[344355801,1733368234675,-504.77312625,0.00023937,2]
[344355803,1733368234687,-500.0,0.00023937,2]
[344355805,1733368234698,-302.68860141,0.00023937,2]
[344355807,1733368234711,-200.0,0.00023937,2]
[344355809,1733368234724,-506.29629106,0.00023937,2]
[344355811,1733368234736,-500.0,0.00023937,2]
[344355813,1733368234747,-500.0,0.00023937,2]
[344355815,1733368234758,-501.83827085,0.00023937,2]
[344355817,1733368234769,-503.56570633,0.00023937,2]
[344355818,1733368234780,-500.0,0.00023937,2]
[344355820,1733368234790,-500.0,0.00023937,2]
[344355822,1733368234801,-500.0,0.00023937,2]
[344355824,1733368234812,-500.0,0.00023937,2]
[344355826,1733368234823,-500.0,0.00023937,2]
[344355828,1733368234833,-279.54164446,0.00023937,2]
[344355829,1733368234844,-500.0,0.00023937,2]
[344355831,1733368234861,-501.6882421,0.00023937,2]
[344355833,1733368234872,-506.95432712,0.00023937,2]
[344355835,1733368234883,-500.0,0.00023937,2]
[344355837,1733368234894,-500.0,0.00023937,2]
[344355839,1733368234905,-500.0,0.00023937,2]
[344355840,1733368234915,-502.54248898,0.00023937,2]
[344355842,1733368234926,-508.23042659,0.00023937,2]
[344355844,1733368234936,-500.0,0.00023937,2]
[344355846,1733368234947,-509.75656195,0.00023937,2]
[344355848,1733368234957,-507.35366665,0.00023937,2]
[344355850,1733368234969,-514.39049012,0.00023937,2]
[344355852,1733368234980,-500.0,0.00023937,2]
[344355854,1733368234990,-500.99407837,0.00023937,2]
[344355856,1733368235002,-500.0,0.00023937,2]
[344355858,1733368235012,-528.05062444,0.00023937,2]
[344355860,1733368235022,-504.16280801,0.00023937,2]
[344355861,1733368235033,-500.0,0.00023937,2]
[344355863,1733368235043,-500.0,0.00023937,2]
[344355865,1733368235053,-500.0,0.00023937,2]
[344355867,1733368235063,-500.0,0.00023937,2]
[344355869,1733368235073,-500.0,0.00023937,2]
[344355871,1733368235083,-282.47783712,0.00023937,2]
[344355873,1733368235094,-500.0,0.00023937,2]
[344355875,1733368235118,-506.87639359,0.00023937,2]
[344355877,1733368235129,-523.6864172,0.00023937,2]
[344355879,1733368235138,-520.37987503,0.00023937,2]
[344355881,1733368235148,-500.0,0.00023937,2]
[344355883,1733368235158,-500.0,0.00023937,2]
[344355885,1733368235167,-505.67474053,0.00023937,2]
[344355887,1733368235177,-503.22503541,0.00023937,2]
[344355889,1733368235187,-507.24526267,0.00023937,2]
[344355890,1733368235197,-500.0,0.00023937,2]
[344355892,1733368235207,-545.81943234,0.00023937,2]
[344355894,1733368235216,-500.0,0.00023937,2]
[344355896,1733368235226,-500.0,0.00023937,2]
[344355898,1733368235235,-500.0,0.00023937,2]
[344355900,1733368235246,-500.0,0.00023937,2]
[344355902,1733368235255,-512.94305819,0.00023937,2]
[344355904,1733368235265,-500.0,0.00023937,2]
[344355906,1733368235275,-500.0,0.00023937,2]
[344355908,1733368235286,-504.60531206,0.00023937,7]
[344355909,1733368235296,-507.0595407,0.00023937,2]
[344355911,1733368235306,-500.0,0.00023937,2]
[344355913,1733368235315,-518.61029971,0.00023937,2]
[344355915,1733368235325,-500.0,0.00023937,2]
[344355917,1733368235334,-500.0,0.00023937,2]
[344355919,1733368235345,-500.0,0.00023937,2]
[344355920,1733368235361,-500.0,0.00023937,2]
[344355922,1733368235373,-506.66581978,0.00023937,2]
[344355924,1733368235383,-500.0,0.00023937,2]
[344355926,1733368235395,-501.69161296,0.00023937,2]
[344355928,1733368235404,-500.0,0.00023937,2]
[344355930,1733368235415,-502.77936736,0.00023937,2]
[344355932,1733368235426,-500.0,0.00023937,2]
[344355934,1733368235436,-503.29998286,0.00023937,2]
[344355936,1733368235447,-597.81,0.00023937,2]
[344355938,1733368235457,-507.14495719,0.00023937,2]
[344355940,1733368235467,-500.0,0.00023937,2]
[344355942,1733368235478,-500.0,0.00023937,2]
[344355943,1733368235488,-505.59125431,0.00023937,2]
[344355945,1733368235507,-507.11146789,0.00023937,2]
[344355947,1733368235517,-503.83361929,0.00023937,2]
[344355949,1733368235527,-503.56413199,0.00023937,2]
[344355951,1733368235536,-503.52684109,0.00023937,2]
[344355953,1733368235546,-500.0,0.00023937,2]
[344355955,1733368235557,-502.28576149,0.00023937,2]
[344355957,1733368235567,-500.0,0.00023937,2]
[344355959,1733368235579,-500.0,0.00023937,2]
[344355961,1733368235589,-500.0,0.00023937,2]
[344355963,1733368235606,-503.47842781,0.00023937,2]
[344355965,1733368235616,-504.42980118,0.00023937,2]
[344355975,1733368235717,-508.45192265,0.00023937,2]
[344355977,1733368235729,-501.43720572,0.00023937,2]
[344355979,1733368235740,-345.4749941,0.00023937,2]
[344355981,1733368235751,-500.0,0.00023937,2]
[344355983,1733368235762,-684.57,0.00023937,2]
[344355985,1733368235773,-500.0,0.00023937,2]
[344355987,1733368235783,-500.0,0.00023937,2]
[344355989,1733368235793,-500.65707517,0.00023937,2]
[344355991,1733368235803,-500.0,0.00023937,2]
[344355992,1733368235812,-500.0,0.00023937,2]
[344355994,1733368235822,-500.0,0.00023937,2]
[344355996,1733368235834,-500.0,0.00023937,2]
[344355998,1733368235844,-501.29739928,0.00023937,2]
[344356000,1733368235860,-500.0,0.00023937,2]
[344356002,1733368235870,-505.79796099,0.00023937,2]
[344356004,1733368235880,-500.0,0.00023937,2]
[344356006,1733368235889,-500.0,0.00023937,2]
[344356008,1733368235903,-500.0,0.00023937,2]
[344356010,1733368235913,-502.15737777,0.00023937,2]
[344356012,1733368235923,-500.0,0.00023937,2]
[344356013,1733368235933,-530.9539688,0.00023937,2]
[344356015,1733368235942,-500.0,0.00023937,2]
[344356017,1733368235952,-500.0,0.00023937,2]
[344356019,1733368235963,-512.28571373,0.00023937,2]
[344356021,1733368235973,-500.0,0.00023937,2]
[344356023,1733368235982,-500.0,0.00023937,2]
[344356025,1733368235993,-500.0,0.00023937,2]
[344356027,1733368236002,-500.0,0.00023937,2]
[344356029,1733368236014,-502.27009913,0.00023937,2]
[344356031,1733368236024,-500.0,0.00023937,2]
[344356033,1733368236033,-502.6643151,0.00023937,2]
[344356034,1733368236043,-505.29097752,0.00023937,2]
[344356036,1733368236054,-502.49932925,0.00023937,2]
[344356038,1733368236064,-500.55126909,0.00023937,2]
[344356040,1733368236076,-485.13271045,0.00023937,2]
[344356042,1733368236087,-506.74664033,0.00023937,2]
[344356044,1733368236102,-507.26785044,0.00023937,2]
[344356046,1733368236112,-500.0,0.00023937,2]
[344356048,1733368236122,-500.0,0.00023937,2]
[344356050,1733368236132,-500.0,0.00023937,2]
[344356052,1733368236142,-553.974383,0.00023937,2]
[344356053,1733368236151,-500.0,0.00023937,2]
[344356055,1733368236161,-500.0,0.00023937,2]
[344356057,1733368236171,-500.96310589,0.00023937,2]
[344356059,1733368236184,-576.54383352,0.00023937,2]
[344356061,1733368236194,-504.81702558,0.00023937,2]
[344356063,1733368236204,-500.0,0.00023937,2]
[344356065,1733368236213,-477.07892174,0.00023937,2]
[344356067,1733368236223,-503.02555613,0.00023937,2]
[344356069,1733368236233,-504.61714286,0.00023937,2]
[344356071,1733368236242,-500.0,0.00023937,2]
[344356073,1733368236252,-500.0,0.00023937,2]
[344356075,1733368236261,-500.0,0.00023937,2]
[344356077,1733368236271,-500.0,0.00023937,2]
[344356078,1733368236280,-500.0,0.00023937,2]
[344356080,1733368236289,-500.0,0.00023937,2]
[344356082,1733368236299,-500.0,0.00023937,2]
[344356084,1733368236309,-506.73498746,0.00023937,2]
[344356086,1733368236319,-500.0,0.00023937,2]
[344356088,1733368236328,-502.3571161,0.00023937,2]
[344356090,1733368236339,-500.0,0.00023937,2]
[344356092,1733368236353,-500.0,0.00023937,2]
[344356094,1733368236362,-500.0,0.00023937,2]
[344356096,1733368236372,-530.26635213,0.00023937,2]
[344356098,1733368236381,-584.29627871,0.00023937,2]
[344356100,1733368236392,-507.58055288,0.00023937,2]
[344356101,1733368236404,-516.07399154,0.00023937,2]